fUST/lending_fUST_20260111
["ID","MTS","AMOUNT","RATE_DAILY","PERIOD"]
[401338688,1768146641963,-500.0,0.00013699,2]
[401338690,1768146641973,-500.0,0.00013699,2]
[401338692,1768146641983,-500.0,0.00013699,2]
[401338694,1768146641993,-500.0,0.00013699,2]
[401338696,1768146642002,-500.0,0.00013699,2]
[401338698,1768146642013,-413.61388111,0.00013699,2]
[401338700,1768146642022,-250.0,0.00013699,2]
[401338702,1768146642031,-500.0,0.00013699,2]
[401338704,1768146642040,-500.0,0.00013699,2]
[401338707,1768146642056,-500.0,0.00013699,2]
[401338709,1768146642071,-500.0,0.00013699,2]
[401338712,1768146642084,-500.0,0.00013699,2]
[401338714,1768146642096,-500.0,0.00013699,2]
[401338716,1768146642107,-500.0,0.00013699,2]
[401338718,1768146642121,-500.0,0.00013699,2]
[401338721,1768146642133,-500.0,0.00013699,2]
[401338723,1768146642147,-500.0,0.00013699,2]
[401338726,1768146642160,-500.0,0.00013699,2]
[401338727,1768146642173,-500.0,0.00013699,2]
[401338728,1768146642187,-500.0,0.00013699,2]
[401338729,1768146642200,-500.0,0.00013699,2]
[401338730,1768146642213,-500.0,0.00013699,2]
[401338731,1768146642225,-500.0,0.00013699,2]
[401338732,1768146642237,-500.0,0.00013699,2]
[401338733,1768146642250,-500.0,0.00013699,2]
[401338734,1768146642264,-295.9151759,0.00013699,2]
[401338735,1768146642278,-268.13097792,0.00013699,2]
[401338736,1768146642290,-501.32276914,0.00013699,2]
[401338737,1768146642301,-500.0,0.00013699,2]
[401338738,1768146642312,-500.0,0.00013699,2]
[401338739,1768146642324,-345.73139261,0.00013699,2]
[401338740,1768146642337,-500.0,0.00013699,2]
[401338741,1768146642350,-441.79967602,0.00013699,2]
[401338742,1768146642363,-500.0,0.00013699,2]
[401338743,1768146642376,-366.95119537,0.00013699,2]
[401338744,1768146642390,-500.0,0.00013699,2]
[401338745,1768146642404,-500.0,0.00013699,2]
[401338746,1768146642417,-500.0,0.00013699,2]
[401338747,1768146642429,-500.0,0.00013699,2]
[401338748,1768146642439,-1613.0,0.00013814,2]
[401338750,1768146642450,-587.59486789,0.00013821,2]
[401338752,1768146642462,-1000.0,0.00013821,2]
[401338755,1768146642476,-1000.0,0.00013821,2]
[401338757,1768146642489,-1000.0,0.00013821,2]
[401338760,1768146642501,-1000.0,0.00013821,2]
[401338762,1768146642511,-1000.0,0.00013821,2]
[401338764,1768146642523,-1000.0,0.00013821,2]
[401338766,1768146642534,-1000.0,0.00013821,2]
[401338769,1768146642548,-1006.38443798,0.00013821,2]
[401338771,1768146642558,-1000.0,0.00013821,2]
[401338773,1768146642573,-1000.0,0.00013821,2]
[401338775,1768146642585,-1000.0,0.00013821,2]
[401338777,1768146642597,-1000.0,0.00013821,2]
[401338779,1768146642608,-1000.0,0.00013821,2]
[401338782,1768146642620,-1000.0,0.00013821,2]
[401338784,1768146642631,-1000.0,0.00013821,2]
[401338786,1768146642644,-1000.0,0.00013821,2]
[401338788,1768146642657,-1000.0,0.00013821,2]
[401338791,1768146642668,-1000.0,0.00013821,2]
[401338793,1768146642680,-1000.0,0.00013821,2]
[401338795,1768146642692,-1000.0,0.00013821,2]
[401338797,1768146642703,-1002.2053155,0.00013821,2]
[401338800,1768146642714,-501.6206004,0.00013821,2]
[401338802,1768146642726,-1000.0,0.00013821,2]
[401338804,1768146642738,-178.09775665,0.00013821,2]
[401338807,1768146642750,-1000.0,0.00013821,2]
[401338809,1768146642761,-1000.0,0.00013821,2]
[401338811,1768146642773,-1000.0,0.00013821,2]
[401338813,1768146642785,-502.34729237,0.00013821,2]
[401338815,1768146642796,-1000.0,0.00013821,2]
[401338818,1768146642807,-1000.0,0.00013821,2]
[401338820,1768146642818,-1000.0,0.00013821,2]
[401338822,1768146642830,-1000.0,0.00013821,2]
[401338824,1768146642841,-1000.0,0.00013821,2]
[401338827,1768146642852,-1001.21467235,0.00013821,2]
[401338829,1768146642863,-1000.0,0.00013821,2]
[401338831,1768146642875,-1000.0,0.00013821,2]
[401338833,1768146642886,-1000.0,0.00013821,2]
[401338836,1768146642897,-1000.0,0.00013821,2]
[401338838,1768146642910,-204.07351011,0.00013821,2]
[401338840,1768146642921,-973.2526551,0.00013821,2]
[401338842,1768146642931,-1000.0,0.00013821,2]
[401338844,1768146642942,-1000.0,0.00013821,2]
[401338847,1768146642954,-1000.0,0.00013821,2]
[401338849,1768146642966,-500.76042299,0.00013821,2]
[401338851,1768146642976,-877.75810228,0.00013821,2]
[401338853,1768146642988,-1000.0,0.00013821,2]
[401338856,1768146642999,-1000.0,0.00013821,2]
[401338858,1768146643011,-151.95,0.000139,2]
[401338860,1768146643023,-600.0,0.00014221,2]
[401338862,1768146643034,-969.53593685,0.00014247,2]
[401338864,1768146643045,-1000.0,0.00014247,2]
[401338867,1768146643057,-501.52224721,0.00014247,2]
[401338869,1768146643069,-1000.0,0.00014247,2]
[401338871,1768146643080,-1000.0,0.00014247,2]
[401338873,1768146643092,-611.85295008,0.00014247,2]
[401338875,1768146643103,-1000.0,0.00014247,2]
[401338878,1768146643115,-1000.0,0.00014247,2]
[401338880,1768146643127,-159.05967354,0.00014247,2]
[401338882,1768146643140,-1000.0,0.00014247,2]
[401338885,1768146643151,-1000.0,0.00014247,2]
[401338887,1768146643162,-1000.0,0.00014247,2]
[401338889,1768146643174,-1000.0,0.00014247,2]
[401338904,1768146643306,-783.84380117,0.00014247,2]
[401338906,1768146643324,-1000.0,0.00014247,2]
[401338908,1768146643333,-192.77974704,0.00014247,2]
[401338910,1768146643343,-1000.0,0.00014247,2]
[401338912,1768146643352,-1000.0,0.00014247,2]
[401338914,1768146643361,-1000.0,0.00014247,2]
[401338916,1768146643371,-1000.0,0.00014247,2]
[401338918,1768146643381,-671.67593478,0.00014247,2]
[401338920,1768146643391,-1000.0,0.00014247,2]
[401338922,1768146643400,-1029.61129365,0.00014247,2]
[401338924,1768146643409,-875.35271766,0.00014247,2]
[401338926,1768146643419,-1000.0,0.00014247,2]
[401338928,1768146643429,-1000.0,0.00014247,2]
[401338930,1768146643439,-1000.0,0.00014247,2]
[401338932,1768146643448,-1000.0,0.00014247,2]
[401338934,1768146643458,-1000.0,0.00014247,2]
[401338936,1768146643467,-1000.0,0.00014247,2]
[401338938,1768146643476,-1000.0,0.00014247,2]
[401338940,1768146643486,-1000.0,0.00014247,2]
[401338942,1768146643495,-1000.31275461,0.00014247,2]
[401338944,1768146643505,-581.34216933,0.00014247,2]
[401338946,1768146643517,-1000.0,0.00014247,2]
[401338948,1768146643527,-1000.0,0.00014247,2]
[401338950,1768146643536,-1000.0,0.00014247,2]
[401338952,1768146643545,-1000.0,0.00014247,2]
[401338954,1768146643554,-504.32249359,0.00014247,2]
[401338956,1768146643564,-1000.0,0.00014247,2]
[401338958,1768146643576,-1000.0,0.00014247,2]
[401338960,1768146643586,-1000.0,0.00014247,2]
[401338962,1768146643595,-1000.0,0.00014247,2]
[401338964,1768146643604,-1000.0,0.00014247,2]
[401338966,1768146643614,-710.18768542,0.00014247,2]
[401338968,1768146643623,-1000.0,0.00014247,2]
[401338970,1768146643633,-1000.0,0.00014247,2]
[401338972,1768146643644,-1000.0,0.00014247,2]
[401338974,1768146643654,-1000.0,0.00014247,2]
[401338976,1768146643663,-1000.0,0.00014247,2]
[401338978,1768146643672,-1000.0,0.00014247,2]
[401338980,1768146643682,-638.41119879,0.00014247,2]
[401338983,1768146643691,-1000.0,0.00014247,2]
[401338985,1768146643701,-443.77041137,0.00014247,2]
[401338986,1768146643710,-1000.0,0.00014247,2]
[401338989,1768146643720,-1000.0,0.00014247,2]
[401338990,1768146643729,-1000.0,0.00014247,2]
[401338993,1768146643739,-505.42705469,0.00014247,2]
[401338994,1768146643749,-500.0,0.00014247,2]
[401338996,1768146643758,-1000.0,0.00014261,2]
[401338998,1768146643769,-492.0,0.00014261,2]
[401339000,1768146643779,-151.42,0.000143,2]
[401339002,1768146643788,-613.91769968,0.00014368,2]
[401339004,1768146643798,-546.83647191,0.00014368,2]
[401339006,1768146643808,-1500.0,0.00014368,2]
[401339008,1768146643817,-1500.0,0.00014368,2]
[401339010,1768146643827,-1000.80134157,0.00014368,2]
[401339013,1768146643836,-1500.0,0.00014368,2]
[401339014,1768146643846,-1500.0,0.00014368,2]
[401339017,1768146643856,-1000.0,0.00014368,2]
[401339018,1768146643866,-1500.0,0.00014368,2]
[401339020,1768146643875,-974.37024763,0.00014368,2]
[401339023,1768146643884,-1500.0,0.00014368,2]
[401339024,1768146643894,-1500.0,0.00014368,2]
[401339026,1768146643903,-1500.0,0.00014368,2]
[401339029,1768146643914,-1500.0,0.00014368,2]
[401339031,1768146643924,-1500.0,0.00014368,2]
[401339033,1768146643935,-554.02767991,0.00014368,2]
[401339034,1768146643945,-1500.0,0.00014368,2]
[401339037,1768146643955,-1500.0,0.00014368,2]
[401339038,1768146643965,-168.36851892,0.00014368,2]
[401339040,1768146643974,-1495.14442511,0.00014368,2]
[401339042,1768146643983,-1500.0,0.00014368,2]
[401339044,1768146643994,-1500.0,0.00014368,2]
[401339046,1768146644004,-1500.0,0.00014368,2]
[401339048,1768146644015,-1500.0,0.00014368,2]
[401339050,1768146644025,-1500.0,0.00014368,2]
[401339052,1768146644034,-1512.80470062,0.00014368,2]
[401339054,1768146644044,-763.96834089,0.00014368,2]
[401339056,1768146644054,-1500.0,0.00014368,2]
[401339058,1768146644063,-1500.0,0.00014368,2]
[401339060,1768146644073,-1151.39515074,0.00014368,2]
[401339062,1768146644082,-1500.0,0.00014368,2]
[401339064,1768146644091,-1500.0,0.00014368,2]
[401339066,1768146644101,-1500.0,0.00014368,2]
[401339068,1768146644111,-1500.0,0.00014368,2]
[401339070,1768146644120,-723.48736773,0.00014368,2]
[401339072,1768146644130,-1500.0,0.00014368,2]
[401339074,1768146644140,-5000.0,0.0001451,2]
[401339076,1768146644150,-161.928,0.00014599,2]
[401339078,1768146644159,-463.56896332,0.00014677,2]
[401339080,1768146644168,-151.95,0.000147,2]
[401339082,1768146644178,-100000.0,0.00014736,2]
[401339084,1768146644187,-900.0,0.00014768,2]
[401339085,1768146644198,-1102.53259662,0.00014795,2]
[401339088,1768146644208,-502.38932755,0.00014795,2]
[401339090,1768146644218,-161.478767,0.00014795,2]
[401339091,1768146644227,-1499.24471264,0.00014795,2]
[401339093,1768146644237,-1500.0,0.00014795,2]
[401339096,1768146644247,-1500.0,0.00014795,2]
[401339097,1768146644259,-1500.0,0.00014795,2]
[401339100,1768146644270,-1163.68911449,0.00014795,2]
[401339102,1768146644280,-1500.0,0.00014795,2]
[401339103,1768146644290,-500.0,0.00014795,2]
[401339105,1768146644300,-1500.0,0.00014795,2]
[401339108,1768146644312,-1500.0,0.00014795,2]
[401339110,1768146644323,-1002.56553603,0.00014795,2]
[401339111,1768146644332,-500.79965419,0.00014795,2]
[401339113,1768146644341,-1500.0,0.00014795,2]
[401339115,1768146644351,-1500.0,0.00014795,2]
[401339118,1768146644360,-501.33075681,0.00014795,2]
[401339120,1768146644369,-1500.0,0.00014795,2]
[401339121,1768146644379,-892.83683556,0.00014795,2]
[401339124,1768146644388,-1500.0,0.00014795,2]
[401339125,1768146644397,-514.14829436,0.00014795,2]
[401339128,1768146644406,-1157.07022264,0.00014795,2]
[401339129,1768146644416,-1514.12213244,0.00014795,2]
[401339131,1768146644426,-1236.28209818,0.00014795,2]
[401339133,1768146644435,-1001.3782102,0.00014795,2]
[401339136,1768146644444,-1500.0,0.00014795,2]
[401339138,1768146644454,-1500.0,0.00014795,2]
[401339140,1768146644464,-488.64589349,0.00014795,2]
[401339142,1768146644473,-1500.0,0.00014795,2]
[401339144,1768146644483,-503.75899236,0.00014795,2]
[401339145,1768146644492,-1516.76085072,0.00014795,2]
[401339147,1768146644502,-788.05151213,0.00014795,2]
[401339149,1768146644511,-1500.0,0.00014795,2]
[401339151,1768146644522,-1500.0,0.00014795,2]
[401339153,1768146644532,-1500.0,0.00014795,2]
[401339155,1768146644541,-1500.0,0.00014795,2]
[401339158,1768146644551,-1500.0,0.00014795,2]
[401339159,1768146644560,-1500.0,0.00014795,2]
[401339161,1768146644571,-1500.0,0.00014795,2]
[401339163,1768146644580,-304.84096496,0.00014795,2]
[401339165,1768146644590,-1509.97698878,0.00014795,2]
[401339167,1768146644602,-1500.0,0.00014795,2]
[401339169,1768146644611,-3429.65312779,0.00014846,2]
[401339171,1768146644621,-1362.69143232,0.000149,2]
[401339173,1768146644630,-151.42,0.000149,2]
[401339175,1768146644640,-1485.3091038,0.00014916,2]
[401339177,1768146644649,-2000.0,0.00014916,2]
[401339179,1768146644658,-1150.76965904,0.00014916,2]
[401339181,1768146644667,-1965.81779273,0.00014916,2]
[401339183,1768146644676,-2000.0,0.00014916,2]
[401339185,1768146644685,-1374.68815725,0.00014916,2]
[401339187,1768146644694,-2000.0,0.00014916,2]
[401339189,1768146644705,-2000.0,0.00014916,2]
[401339191,1768146644715,-2000.0,0.00014916,2]
[401339193,1768146644725,-2000.0,0.00014916,2]
[401339195,1768146644734,-603.18109463,0.00014916,2]
[401339197,1768146644743,-2000.0,0.00014916,2]
[401339199,1768146644753,-2000.0,0.00014916,2]
[401339201,1768146644762,-1374.83618263,0.00014916,2]
[401339203,1768146644772,-192.00163587,0.00014916,2]
[401339205,1768146644781,-2000.0,0.00014916,2]
[401339207,1768146644790,-2000.0,0.00014916,2]
[401339209,1768146644799,-1498.81892914,0.00014916,2]
[401339211,1768146644809,-2000.0,0.00014916,2]
[401339213,1768146644819,-613.36442406,0.00014916,2]
[401339215,1768146644828,-2000.0,0.00014916,2]
[401339217,1768146644837,-1502.33157316,0.00014916,2]
[401339219,1768146644846,-2000.0,0.00014916,2]
[401339221,1768146644856,-2000.0,0.00014916,2]
[401339223,1768146644865,-1000.0,0.00015,2]
[401339225,1768146644875,-800.0,0.00015068,2]
[401339227,1768146644885,-2258.0,0.00015195,2]
[401339229,1768146644895,-1200.0,0.00015316,2]
[401339231,1768146644904,-2143.18421046,0.00015342,2]
[401339233,1768146644914,-885.09915474,0.00015342,2]
[401339235,1768146644924,-1000.0,0.00015342,2]
[401339237,1768146644933,-1204.73550321,0.00015342,2]
[401339239,1768146644943,-2000.0,0.00015342,2]
[401339241,1768146644952,-2140.95571878,0.00015342,2]
[401339243,1768146644961,-2000.0,0.00015342,2]
[401339245,1768146644970,-674.14847626,0.00015342,2]
[401339247,1768146644980,-1089.88646751,0.00015342,2]
[401339249,1768146644989,-525.59078617,0.00015342,2]
[401339251,1768146644999,-500.0,0.00015342,2]
[401339253,1768146645009,-2097.05305078,0.00015342,2]
[401339255,1768146645019,-1501.01375621,0.00015342,2]
[401339257,1768146645029,-1426.89565163,0.00015342,2]
[401339259,1768146645039,-2000.0,0.00015342,2]
[401339261,1768146645048,-1004.51727604,0.00015342,2]
[401339263,1768146645058,-2000.0,0.00015342,2]
[401339265,1768146645067,-304.72135436,0.00015342,2]
[401339267,1768146645077,-1144.01857865,0.00015342,2]
[401339269,1768146645087,-2000.0,0.00015342,2]
[401339271,1768146645098,-2000.0,0.00015342,2]
[401339272,1768146645113,-170.16316784,0.00015464,2]
[401339274,1768146645123,-2500.0,0.00015464,2]
[401339276,1768146645138,-1466.62413338,0.00015464,2]
[401339278,1768146645148,-2500.0,0.00015464,2]
[401339280,1768146645157,-555.48898116,0.00015464,2]
[401339282,1768146645167,-281.06836301,0.00015464,2]
[401339285,1768146645176,-2500.0,0.00015464,2]
[401339288,1768146645186,-2500.0,0.00015464,2]
[401339292,1768146645196,-2500.0,0.00015464,2]
[401339295,1768146645206,-2500.0,0.00015464,2]
[401339298,1768146645215,-2500.0,0.00015464,2]
[401339299,1768146645225,-2500.0,0.00015464,2]
[401339302,1768146645235,-2500.0,0.00015464,2]
[401339305,1768146645244,-2500.0,0.00015464,2]
[401339307,1768146645254,-151.95,0.000155,2]
[401339310,1768146645264,-151.42,0.000156,2]
[401339314,1768146645274,-1000.0,0.00015687,2]
[401339316,1768146645283,-791.0,0.00015687,2]
[401339319,1768146645293,-1500.0,0.00015864,2]
[401339321,1768146645306,-2500.0,0.0001589,2]
[401339323,1768146645317,-2500.0,0.0001589,2]
[401339325,1768146645327,-2134.65901332,0.0001589,2]
[401339327,1768146645337,-2500.0,0.0001589,2]
[401339329,1768146645347,-2500.0,0.0001589,2]
[401339331,1768146645356,-2500.0,0.0001589,2]
[401339333,1768146645366,-1506.66545063,0.00016012,2]
[401339335,1768146645376,-3000.0,0.00016012,2]
[401339337,1768146645386,-3000.0,0.00016012,2]
[401339339,1768146645395,-3000.0,0.00016012,2]
[401339341,1768146645405,-3000.0,0.00016012,2]
[401339343,1768146645416,-3000.0,0.00016012,2]
[401339345,1768146645426,-3000.0,0.00016012,2]
[401339347,1768146645435,-3000.0,0.00016012,2]
[401339348,1768146645446,-1397.40421659,0.00016012,2]
[401339349,1768146645456,-3000.0,0.00016012,2]
[401339350,1768146645466,-1600.0,0.00016164,2]
[401339351,1768146645476,-151.42,0.000162,2]
[401339352,1768146645486,-151.95,0.000164,2]
[401339353,1768146645496,-1800.0,0.00016412,2]
[401339354,1768146645506,-500.0,0.00016438,2]
[401339355,1768146645515,-500.0,0.00016438,2]
[401339356,1768146645626,-500.0,0.00016438,2]
[401339357,1768146645636,-500.0,0.00016438,2]
[401339358,1768146645647,-500.0,0.00016438,2]
[401339359,1768146645657,-247.4409887,0.00016438,2]
[401339360,1768146645667,-500.0,0.00016438,2]
[401339361,1768146645677,-500.0,0.00016438,2]
[401339362,1768146645686,-164.19129262,0.00016438,2]
[401339363,1768146645696,-3002.60955562,0.00016438,2]
[401339364,1768146645706,-2552.92932298,0.00016438,2]
[401339365,1768146645716,-3000.0,0.00016438,2]
[401339366,1768146645725,-3000.0,0.00016438,2]
[401339367,1768146645735,-3000.0,0.00016438,2]
[401339368,1768146645745,-260.15865923,0.00016438,2]
[401339369,1768146645755,-200.0,0.00016473,2]
[401339370,1768146645766,-3500.0,0.0001656,2]
[401339371,1768146645776,-3500.0,0.0001656,2]
[401339372,1768146645788,-3500.0,0.0001656,2]
[401339373,1768146645801,-3500.0,0.0001656,2]
[401339374,1768146645810,-3500.0,0.0001656,2]
[401339375,1768146645820,-3500.0,0.0001656,2]
[401339376,1768146645830,-3500.0,0.0001656,2]
[401339377,1768146645839,-3500.0,0.0001656,2]
[401339378,1768146645848,-517.75234864,0.00016677,2]
[401339379,1768146645859,-1730.0,0.00016715,2]
[401339380,1768146645868,-151.42,0.000169,2]
[401339381,1768146645877,-2100.0,0.0001696,2]
[401339382,1768146645887,-3500.0,0.00016986,2]
[401339383,1768146645897,-3500.0,0.00016986,2]
[401339384,1768146645906,-3500.0,0.00016986,2]
[401339385,1768146645917,-4000.0,0.00017108,2]
[401339386,1768146645927,-4000.0,0.00017108,2]
[401339388,1768146645936,-4000.0,0.00017108,2]
[401339389,1768146645945,-3962.04250286,0.00017108,2]
[401339390,1768146645955,-3500.0,0.00017108,2]
[401339391,1768146645964,-4000.0,0.00017108,2]
[401339392,1768146645973,-4000.0,0.00017108,2]
[401339393,1768146645982,-4000.0,0.00017108,2]
[401339394,1768146645991,-151.95,0.000172,2]
[401339395,1768146646000,-1000.0,0.00017256,2]
[401339396,1768146646009,-1000.0,0.00017256,2]
[401339397,1768146646021,-1901.71937705,0.0001726,2]
[401339398,1768146646030,-5000.0,0.00017412,2]
[401339399,1768146646039,-2400.0,0.00017508,2]
[401339400,1768146646048,-1078.16970935,0.00017534,2]
[401339401,1768146646057,-4000.0,0.00017534,2]
[401339402,1768146646067,-4000.0,0.00017534,2]
[401339403,1768146646076,-151.42,0.000176,2]
[401339404,1768146646085,-4500.0,0.00017656,2]
[401339405,1768146646095,-4500.0,0.00017656,2]
[401339406,1768146646104,-1878.46600243,0.00017656,2]
[401339407,1768146646113,-4500.0,0.00017656,2]
[401339408,1768146646124,-4500.0,0.00017656,2]
[401339409,1768146646133,-4500.0,0.00017656,2]
[401339410,1768146646143,-400.0,0.00017842,2]
[401339411,1768146646152,-151.95,0.00018,2]
[401339412,1768146646162,-744.72420012,0.00018056,2]
[401339413,1768146646171,-4500.0,0.00018082,2]
[401339414,1768146646181,-4500.0,0.00018082,2]
[401339415,1768146646190,-151.42,0.000182,2]
[401339416,1768146646200,-2642.48470631,0.00018204,2]
[401339417,1768146646209,-4495.04726907,0.00018204,2]
[401339418,1768146646218,-5000.0,0.00018204,2]
[401339419,1768146646228,-988.31906632,0.00018204,2]
[401339420,1768146646238,-5000.0,0.00018204,2]
[401339421,1768146646247,-5000.0,0.0001863,2]
[401339422,1768146646257,-5000.0,0.0001863,2]
[401339423,1768146646266,-571.93573397,0.00018677,2]
[401339424,1768146646276,-5500.0,0.00018752,2]
[401339425,1768146646285,-2821.06911742,0.00018752,2]
[401339426,1768146646294,-151.95,0.000188,2]
[401339427,1768146646303,-92701.510234,0.000188,2]
[401339428,1768146646312,-5000.0,0.00018863,2]
[401339429,1768146646322,-151.42,0.000189,2]
[401339430,1768146646331,-1000.0,0.00018981,2]
[401339431,1768146646340,-1000.0,0.00018981,2]
[401339432,1768146646349,-579.0,0.00018981,2]
[401339433,1768146646358,-506.7938,0.00019178,2]
[401339434,1768146646367,-200.0,0.00019178,2]
[401339435,1768146646377,-1035.45,0.00019178,2]
[401339436,1768146646385,-1418.97723055,0.00019178,2]
[401339437,1768146646395,-5500.0,0.00019178,2]
[401339438,1768146646403,-167.58,0.000192,2]
[401339439,1768146646412,-2732.45700431,0.000193,2]
[401339440,1768146646421,-163.88,0.000194,2]
[401339441,1768146646430,-166.96,0.000194,2]
[401339442,1768146646439,-13367.01,0.000194,2]
[401339443,1768146646447,-2140.41,0.000194,2]
[401339444,1768146646456,-151.95,0.000196,2]
[401339445,1768146646465,-151.42,0.000196,2]
[401339446,1768146646474,-5461.92726002,0.00019726,2]
[401339447,1768146646483,-151.97857558,0.0002,2]
[401339448,1768146646492,-506.7938,0.0002,4]
[401339449,1768146646502,-151.42,0.000202,2]
[401339450,1768146646511,-556.3,0.00020318,2]
[401339451,1768146646520,-151.95,0.000204,2]
[401339452,1768146646529,-506.7938,0.00020411,5]
[401339453,1768146646538,-626.11911929,0.00020677,2]
[401339454,1768146646547,-1000.0,0.00020879,2]
[401339455,1768146646556,-1000.0,0.00020879,2]
[401339456,1768146646568,-1000.0,0.00020879,2]
[401339457,1768146646577,-151.0,0.000209,3]
[401339458,1768146646586,-151.0,0.000209,3]
[401339459,1768146646595,-151.0,0.000209,3]
[401339460,1768146646604,-151.42,0.000209,2]
[401339461,1768146646617,-3429.65312779,0.00020938,2]
[401339462,1768146646630,-151.95,0.000212,2]
[401339463,1768146646641,-151.42,0.000215,2]
[401339464,1768146646650,-556.3,0.00021835,2]
[401339465,1768146646660,-152.90727816,0.00021918,2]
[401339466,1768146646669,-151.95,0.00022,2]
[401339467,1768146646677,-151.42,0.000222,2]
[401339468,1768146646686,-250.0,0.00022466,2]
[401339469,1768146646695,-680.30250461,0.00022677,2]
[401339470,1768146646704,-151.95,0.000228,2]
[401339471,1768146646713,-151.42,0.000229,2]
[401339472,1768146646722,-1000.0,0.00022967,10]
[401339473,1768146646731,-1000.0,0.00022967,10]
[401339474,1768146646740,-1000.0,0.00022967,10]
[401339475,1768146646749,-715.0,0.00022967,10]
[401339476,1768146646758,-350.0,0.00023014,2]
[401339477,1768146646768,-556.3,0.00023351,2]
[401339478,1768146646779,-151.42,0.000235,2]
[401339479,1768146646788,-450.0,0.00023562,2]
[401339480,1768146646798,-151.95,0.000237,2]
[401339481,1768146646807,-550.0,0.0002411,2]
[401339482,1768146646817,-151.42,0.000242,2]
[401339483,1768146646827,-258.38,0.00024435,2]
[401339484,1768146646836,-151.95,0.000245,2]
[401339485,1768146646846,-650.0,0.00024658,2]
[401339486,1768146646855,-734.48588994,0.00024677,2]
[401339487,1768146646865,-155.5739919,0.00024697,5]
[401339488,1768146646874,-151.42,0.000248,2]
[401339489,1768146646883,-556.3,0.00024868,2]
[401339490,1768146646893,-151.0,0.000249,7]
[401339491,1768146646902,-200.586455,0.000249,7]
[401339492,1768146646911,-286.469083,0.000249,7]
[401339493,1768146646920,-151.0,0.000249,7]
[401339494,1768146646930,-151.0,0.000249,7]
[401339495,1768146646939,-151.0,0.000249,7]
[401339496,1768146646948,-240.800368,0.000249,7]
[401339497,1768146646958,-163.313773,0.000249,7]
[401339498,1768146646967,-349.055387,0.000249,7]
[401339499,1768146646977,-349.055387,0.000249,7]
[401339500,1768146646986,-349.055387,0.000249,7]
[401339501,1768146646996,-349.055387,0.000249,7]
[401339502,1768146647005,-151.0,0.000249,7]
[401339503,1768146647014,-301.393574,0.000249,7]
[401339504,1768146647024,-151.292503,0.000249,7]
[401339505,1768146647033,-151.0,0.000249,7]
[401339506,1768146647043,-264.224,0.000249,7]
[401339508,1768146647052,-151.0,0.000249,7]
[401339510,1768146647061,-264.224,0.000249,7]
[401339511,1768146647070,-151.0,0.000249,7]
[401339513,1768146647079,-264.224,0.000249,7]
[401339515,1768146647088,-151.0,0.000249,7]
[401339517,1768146647099,-264.224,0.000249,7]
[401339519,1768146647108,-216.089114,0.000249,7]
[401339521,1768146647119,-216.089114,0.000249,7]
[401339523,1768146647128,-216.089114,0.000249,7]
[401339525,1768146647137,-216.089114,0.000249,7]
[401339527,1768146647146,-225.859576,0.000249,7]
[401339529,1768146647156,-151.0,0.000249,7]
[401339531,1768146647165,-151.0,0.000249,7]
[401339533,1768146647174,-164.871038,0.000249,7]
[401339535,1768146647183,-151.0,0.000249,7]
[401339537,1768146647192,-152.567384,0.000249,7]
[401339539,1768146647202,-151.0,0.000249,7]
[401339541,1768146647211,-170.54126,0.000249,7]
[401339542,1768146647220,-151.0,0.000249,7]
[401339544,1768146647230,-161.662681,0.000249,7]
[401339545,1768146647239,-400097.821185,0.000249,2]